fUSD/lending_fUSD_20250202
["ID","MTS","AMOUNT","RATE_DAILY","PERIOD"]
[351286473,1738505585151,-551.84,0.00013698,2]
[351286474,1738505585167,-1109.74,0.00013698,2]
[351286475,1738505585183,-551.84,0.00013698,2]
[351286476,1738505585198,-551.84,0.00013698,2]
[351286477,1738505585213,-500.44,0.00013698,2]
[351286478,1738505585228,-551.84,0.00013698,2]
[351286479,1738505585243,-681.73,0.00013698,2]
[351286480,1738505585258,-677.93,0.00013698,2]
[351286481,1738505585275,-513.34,0.00013698,2]
[351286482,1738505585291,-1154.2,0.00013698,2]
[351286483,1738505585306,-2022.69,0.00013698,2]
[351286484,1738505585321,-685.35,0.00013698,2]
[351286485,1738505585336,-500.0,0.00013698,2]
[351286486,1738505585351,-550.64,0.00013698,2]
[351286487,1738505585366,-1342.11,0.00013698,2]
[351286488,1738505585380,-2093.39,0.00013698,2]
[351286489,1738505585396,-880.18,0.00013698,2]
[351286490,1738505585411,-1643.92,0.00013698,2]
[351286491,1738505585426,-500.0,0.00013698,2]
[351286492,1738505585441,-793.33,0.00013698,2]
[351286493,1738505585456,-381.99957043,0.00013698,2]
[351286494,1738505585470,-1232.16,0.00013698,2]
[351286495,1738505585485,-588.54,0.00013698,2]
[351286496,1738505585499,-534.34,0.00013698,2]
[351286497,1738505585513,-538.87,0.00013698,2]
[351286498,1738505585528,-793.28,0.00013698,2]
[351286499,1738505585543,-1592.88,0.00013698,2]
[351286500,1738505585561,-616.53,0.00013698,2]
[351286501,1738505585576,-500.0,0.00013698,2]
[351286502,1738505585591,-1854.87,0.00013698,2]
[351286503,1738505585606,-1690.33,0.00013698,2]
[351286504,1738505585622,-534.43,0.00013698,2]
[351286505,1738505585639,-500.0,0.00013698,2]
[351286506,1738505585654,-637.72,0.00013698,2]
[351286507,1738505585669,-1150.84,0.00013698,2]
[351286508,1738505585684,-508.66,0.00013698,2]
[351286509,1738505585698,-508.93,0.00013698,2]
[351286510,1738505585712,-500.0,0.00013698,2]
[351286511,1738505585728,-800.25,0.00013698,2]
[351286512,1738505585742,-586.07,0.00013698,2]
[351286513,1738505585758,-731.54,0.00013698,2]
[351286514,1738505585772,-1305.07,0.00013698,2]
[351286515,1738505585787,-1841.9,0.00013698,2]
[351286516,1738505585802,-734.22,0.00013698,2]
[351286517,1738505585817,-500.0,0.00013698,2]
[351286518,1738505585832,-1731.58,0.00013698,2]
[351286519,1738505585845,-573.1,0.00013698,2]
[351286520,1738505585860,-500.0,0.00013698,2]
[351286521,1738505585876,-1366.78,0.00013698,2]
[351286522,1738505585891,-1447.06,0.00013698,2]
[351286523,1738505585906,-955.56,0.00013698,2]
[351286524,1738505585920,-521.42,0.00013698,2]
[351286525,1738505585935,-854.39,0.00013698,2]
[351286526,1738505585950,-904.27,0.00013698,2]
[351286527,1738505585965,-2762.56,0.00013698,2]
[351286528,1738505585981,-666.98,0.00013698,2]
[351286529,1738505585997,-500.0,0.00013698,2]
[351286530,1738505586012,-783.0,0.00013698,2]
[351286531,1738505586027,-500.0,0.00013698,2]
[351286532,1738505586040,-2104.01,0.00013698,2]
[351286533,1738505586056,-2287.85,0.00013698,2]
[351286534,1738505586070,-944.74,0.00013698,2]
[351286535,1738505586084,-738.27,0.00013698,2]
[351286536,1738505586099,-505.82,0.00013698,2]
[351286537,1738505586114,-1297.85,0.00013698,2]
[351286538,1738505586129,-1519.92,0.00013698,2]
[351286539,1738505586143,-341.5682732,0.00013698,2]
[351286540,1738505586158,-195.98593272,0.00013698,2]
[351286541,1738505586173,-643.77,0.00013698,2]
[351286542,1738505586189,-784.02,0.00013698,2]
[351286543,1738505586203,-529.45,0.00013698,2]
[351286544,1738505586217,-500.0,0.00013698,2]
[351286545,1738505586232,-1418.55,0.00013698,2]
[351286546,1738505586246,-517.07,0.00013698,2]
[351286547,1738505586261,-1420.23,0.00013698,2]
[351286548,1738505586276,-2181.51,0.00013698,2]
[351286549,1738505586291,-1225.35,0.00013698,2]
[351286550,1738505586305,-2783.69,0.00013698,2]
[351286551,1738505586319,-942.19,0.00013698,2]
[351286552,1738505586333,-507.86,0.00013698,2]
[351286553,1738505586348,-844.52,0.00013698,2]
[351286554,1738505586364,-1267.86,0.00013698,2]
[351286555,1738505586380,-1642.95,0.00013698,2]
[351286556,1738505586396,-500.0,0.00013698,2]
[351286557,1738505586411,-632.5,0.00013698,2]
[351286558,1738505586426,-717.96,0.00013698,2]
[351286559,1738505586440,-862.89,0.00013698,2]
[351286560,1738505586456,-978.15,0.00013698,2]
[351286561,1738505586471,-1851.1,0.00013698,2]
[351286562,1738505586485,-591.76,0.00013698,2]
[351286563,1738505586500,-722.67,0.00013698,2]
[351286564,1738505586515,-500.0,0.00013698,2]
[351286565,1738505586531,-520.38,0.00013698,2]
[351286566,1738505586545,-306.47696261,0.00013698,2]
[351286567,1738505586561,-1708.12,0.00013698,2]
[351286568,1738505586576,-523.57,0.00013698,2]
[351286569,1738505586591,-760.88,0.00013698,2]
[351286570,1738505586608,-500.0,0.00013698,2]
[351286571,1738505586622,-811.43,0.00013698,2]
[351286572,1738505586638,-1373.61,0.00013698,2]
[351286573,1738505586653,-1105.09,0.00013698,2]
[351286574,1738505586668,-747.24,0.00013698,2]
[351286575,1738505586681,-1175.0,0.00013698,2]
[351286576,1738505586696,-1419.66,0.00013698,2]
[351286577,1738505586710,-899.67,0.00013698,2]
[351286578,1738505586725,-814.85,0.00013698,2]
[351286579,1738505586739,-967.34,0.00013698,2]
[351286580,1738505586754,-984.06,0.00013698,2]
[351286581,1738505586768,-709.72,0.00013698,2]
[351286582,1738505586784,-509.47,0.00013698,2]
[351286583,1738505586798,-1529.4,0.00013698,2]
[351286584,1738505586813,-1025.92,0.00013698,2]
[351286585,1738505586827,-580.72,0.00013698,2]
[351286586,1738505586841,-736.8,0.00013698,2]
[351286587,1738505586856,-500.0,0.00013698,2]
[351286588,1738505586871,-794.58,0.00013698,2]
[351286589,1738505586884,-515.19,0.00013698,2]
[351286590,1738505586898,-494.39816772,0.00013698,2]
[351286591,1738505586912,-551.09,0.00013698,2]
[351286592,1738505586927,-1457.11,0.00013698,2]
[351286593,1738505586939,-848.94,0.00013698,2]
[351286594,1738505586954,-512.04,0.00013698,2]
[351286595,1738505586968,-1457.16,0.00013698,2]
[351286596,1738505586982,-562.76,0.00013698,2]
[351286597,1738505586995,-1032.24,0.00013698,2]
[351286598,1738505587009,-1061.96,0.00013698,2]
[351286599,1738505587024,-679.22,0.00013698,2]
[351286600,1738505587039,-1015.65,0.00013698,2]
[351286601,1738505587053,-1177.9,0.00013698,2]
[351286602,1738505587068,-510.71,0.00013698,2]
[351286603,1738505587082,-584.42,0.00013698,2]
[351286604,1738505587097,-1657.79,0.00013698,2]
[351286605,1738505587112,-1057.32,0.00013698,2]
[351286606,1738505587126,-500.0,0.00013698,2]
[351286607,1738505587139,-865.79,0.00013698,2]
[351286608,1738505587154,-1316.4,0.00013698,2]
[351286609,1738505587169,-737.32,0.00013698,2]
[351286610,1738505587183,-671.26,0.00013698,2]
[351286611,1738505587197,-751.62,0.00013698,2]
[351286612,1738505587212,-750.62,0.00013698,2]
[351286613,1738505587227,-1011.53,0.00013698,2]
[351286614,1738505587242,-1248.28,0.00013698,2]
[351286615,1738505587256,-519.27,0.00013698,2]
[351286616,1738505587270,-775.41,0.00013698,2]
[351286617,1738505587288,-650.78,0.00013698,2]
[351286618,1738505587303,-787.2,0.00013698,2]
[351286619,1738505587318,-1398.59,0.00013698,2]
[351286620,1738505587334,-1717.3,0.00013698,2]
[351286621,1738505587349,-2098.34,0.00013698,2]
[351286622,1738505587364,-535.92,0.00013698,2]
[351286623,1738505587377,-520.83,0.00013698,2]
[351286624,1738505587807,-696.21,0.00013698,2]
[351286625,1738505587823,-638.42,0.00013698,2]
[351286626,1738505587833,-1388.03,0.00013698,2]
[351286627,1738505587842,-1438.93,0.00013698,2]
[351286628,1738505587852,-1164.79,0.00013698,2]
[351286629,1738505587862,-1523.64,0.00013698,2]
[351286630,1738505587872,-500.0,0.00013698,2]
[351286631,1738505587881,-2008.34,0.00013698,2]
[351286632,1738505587891,-867.5,0.00013698,2]
[351286633,1738505587901,-500.0,0.00013698,2]
[351286634,1738505587911,-930.83,0.00013698,2]
[351286635,1738505587920,-1142.86,0.00013698,2]
[351286636,1738505587929,-1063.97,0.00013698,2]
[351286637,1738505587939,-5963.38,0.00013698,2]
[351286638,1738505587949,-528.98,0.00013698,2]
[351286639,1738505587959,-632.65,0.00013698,2]
[351286640,1738505587968,-939.46,0.00013698,2]
[351286641,1738505587977,-2575.73,0.00013698,2]
[351286642,1738505587986,-1411.82,0.00013698,2]
[351286643,1738505587995,-4332.07,0.00013698,2]
[351286644,1738505588005,-623.14,0.00013698,2]
[351286645,1738505588014,-808.47,0.00013698,2]
[351286646,1738505588023,-1167.23,0.00013698,2]
[351286647,1738505588034,-1073.14,0.00013698,2]
[351286648,1738505588044,-1266.06,0.00013698,2]
[351286649,1738505588053,-1643.83,0.00013698,2]
[351286650,1738505588063,-2134.84,0.00013698,2]
[351286651,1738505588073,-1098.43,0.00013698,2]
[351286652,1738505588082,-636.47,0.00013698,2]
[351286653,1738505588092,-2806.74,0.00013698,2]
[351286654,1738505588101,-329.56791775,0.00013698,2]
[351286655,1738505588110,-7531.63,0.00013698,2]
[351286656,1738505588120,-4457.82,0.00013698,2]
[351286657,1738505588130,-1431.15,0.00013698,2]
[351286658,1738505588139,-500.0,0.00013698,2]
[351286659,1738505588149,-1068.36,0.00013698,2]
[351286660,1738505588159,-3317.75,0.00013698,2]
[351286661,1738505588168,-3236.23,0.00013698,2]
[351286662,1738505588177,-998.58,0.00013698,2]
[351286663,1738505588187,-649.19,0.00013698,2]
[351286664,1738505588197,-3603.07,0.00013698,2]
[351286665,1738505588206,-647.76,0.00013698,2]
[351286666,1738505588216,-518.71,0.00013698,2]
[351286667,1738505588225,-2773.67,0.00013698,2]
[351286668,1738505588235,-3478.77,0.00013698,2]
[351286669,1738505588244,-1377.07,0.00013698,2]
[351286670,1738505588253,-625.24074779,0.00013698,2]
[351286671,1738505588263,-1559.79,0.00013698,2]
[351286672,1738505588272,-993.51,0.00013698,2]
[351286673,1738505588284,-1353.14,0.00013698,2]
[351286674,1738505588293,-1889.01,0.00013698,2]
[351286675,1738505588303,-5584.57,0.00013698,2]
[351286676,1738505588312,-532.1,0.00013698,2]
[351286677,1738505588322,-628.58,0.00013698,2]
[351286678,1738505588332,-500.0,0.00013698,2]
[351286679,1738505588341,-1416.56,0.00013698,2]
[351286680,1738505588351,-966.92,0.00013698,2]
[351286681,1738505588360,-1706.09,0.00013698,2]
[351286682,1738505588370,-820.07,0.00013698,2]
[351286683,1738505588380,-865.01,0.00013698,2]
[351286684,1738505588389,-555.56,0.00013698,2]
[351286685,1738505588399,-500.0,0.00013698,2]
[351286686,1738505588409,-6599.2,0.00013698,2]
[351286687,1738505588418,-4362.97,0.00013698,2]
[351286688,1738505588427,-3023.49,0.00013698,2]
[351286689,1738505588436,-1475.65,0.00013698,2]
[351286690,1738505588445,-786.41,0.00013698,2]
[351286691,1738505588455,-1337.09,0.00013698,2]
[351286692,1738505588464,-1205.96,0.00013698,2]
[351286693,1738505588473,-2817.82,0.00013698,2]
[351286694,1738505588483,-1903.11,0.00013698,2]
[351286695,1738505588493,-2360.45,0.00013698,2]
[351286696,1738505588503,-583.26,0.00013698,2]
[351286697,1738505588513,-934.52,0.00013698,2]
[351286698,1738505588523,-1388.22,0.00013698,2]
[351286699,1738505588534,-2432.51,0.00013698,2]
[351286700,1738505588543,-2243.95,0.00013698,2]
[351286701,1738505588556,-609.67,0.00013698,2]
[351286702,1738505588566,-1262.46,0.00013698,2]
[351286703,1738505588575,-2572.68,0.00013698,2]
[351286704,1738505588584,-1950.74,0.00013698,2]
[351286705,1738505588595,-1181.19,0.00013698,2]
[351286706,1738505588604,-871.86,0.00013698,2]
[351286707,1738505588614,-1126.88,0.00013698,2]
[351286708,1738505588623,-541.6,0.00013698,2]
[351286709,1738505588633,-2805.0,0.00013698,2]
[351286710,1738505588642,-3490.69,0.00013698,2]
[351286711,1738505588651,-2478.61,0.00013698,2]
[351286712,1738505588662,-1886.99,0.00013698,2]
[351286713,1738505588671,-693.62,0.00013698,2]
[351286714,1738505588681,-1166.42,0.00013698,2]
[351286715,1738505588690,-4718.72,0.00013698,2]
[351286716,1738505588700,-646.83,0.00013698,2]
[351286717,1738505588709,-1219.56,0.00013698,2]
[351286718,1738505588719,-1713.43,0.00013698,2]
[351286719,1738505588729,-500.0,0.00013698,2]
[351286720,1738505588738,-764.96,0.00013698,2]
[351286721,1738505588747,-742.31,0.00013698,2]
[351286722,1738505588757,-585.08,0.00013698,2]
[351286723,1738505588766,-5247.94,0.00013698,2]
[351286724,1738505588776,-1545.21,0.00013698,2]
[351286725,1738505588785,-5157.65,0.00013698,2]
[351286726,1738505588799,-2240.61,0.00013698,2]
[351286727,1738505588808,-1481.58,0.00013698,2]
[351286728,1738505588817,-535.67,0.00013698,2]
[351286729,1738505588826,-1399.19,0.00013698,2]
[351286730,1738505588836,-3226.98,0.00013698,2]
[351286731,1738505588845,-1311.36,0.00013698,2]
[351286732,1738505588854,-1485.26,0.00013698,2]
[351286733,1738505588863,-5680.36,0.00013698,2]
[351286734,1738505588872,-2300.21,0.00013698,2]
[351286735,1738505588881,-2782.57,0.00013698,2]
[351286736,1738505588891,-2521.42,0.00013698,2]
[351286737,1738505588900,-1766.1,0.00013698,2]
[351286738,1738505588909,-1697.0,0.00013698,2]
[351286739,1738505588918,-1939.71,0.00013698,2]
[351286740,1738505588928,-787.48,0.00013698,2]
[351286741,1738505588937,-1300.79,0.00013698,2]
[351286742,1738505588947,-3484.78,0.00013698,2]
[351286743,1738505588956,-512.49,0.00013698,2]
[351286744,1738505588966,-1213.23,0.00013698,2]
[351286745,1738505588975,-2449.26,0.00013698,2]
[351286746,1738505588985,-5629.82,0.00013698,2]
[351286747,1738505588994,-758.01,0.00013698,2]
[351286748,1738505589004,-848.99,0.00013698,2]
[351286749,1738505589014,-888.7,0.00013698,2]
[351286750,1738505589023,-4605.95,0.00013698,2]
[351286751,1738505589035,-2359.63,0.00013698,2]
[351286752,1738505589044,-892.49,0.00013698,2]
[351286753,1738505589054,-871.23,0.00013698,2]
[351286754,1738505589063,-1094.04,0.00013698,2]
[351286755,1738505589072,-6442.67,0.00013698,2]
[351286756,1738505589082,-2052.81,0.00013698,2]
[351286757,1738505589091,-1297.27,0.00013698,2]
[351286758,1738505589100,-2655.71,0.00013698,2]
[351286759,1738505589109,-1885.94,0.00013698,2]
[351286760,1738505589118,-1553.08,0.00013698,2]
[351286761,1738505589127,-10441.41,0.00013698,2]
[351286762,1738505589137,-1012.3,0.00013698,2]
[351286763,1738505589146,-500.0,0.00013698,2]
[351286764,1738505589155,-4514.04,0.00013698,2]
[351286765,1738505589164,-3003.61,0.00013698,2]
[351286766,1738505589173,-2902.94,0.00013698,2]
[351286767,1738505589182,-4716.6,0.00013698,2]
[351286768,1738505589192,-1964.45,0.00013698,2]
[351286769,1738505589201,-1593.35,0.00013698,2]
[351286770,1738505589210,-1637.22,0.00013698,2]
[351286771,1738505589220,-882.55,0.00013698,2]
[351286772,1738505589229,-3416.51,0.00013698,2]
[351286773,1738505589238,-4127.67,0.00013698,2]
[351286774,1738505589247,-9172.95,0.00013698,2]
[351286775,1738505589256,-716.69,0.00013698,2]
[351286776,1738505589266,-3935.05,0.00013698,2]
[351286777,1738505589275,-994.51,0.00013698,2]
[351286778,1738505589286,-2231.33,0.00013698,2]
[351286779,1738505589295,-646.36,0.00013698,2]
[351286780,1738505589305,-7703.46,0.00013698,2]
[351286781,1738505589314,-612.75,0.00013698,2]
[351286782,1738505589325,-1008.29,0.00013698,2]
[351286783,1738505589334,-6130.86,0.00013698,2]
[351286784,1738505589344,-4888.75,0.00013698,2]
[351286785,1738505589353,-4468.98,0.00013698,2]
[351286786,1738505589363,-874.52,0.00013698,2]
[351286787,1738505589373,-7017.85,0.00013698,2]
[351286788,1738505589382,-7067.83,0.00013698,2]
[351286789,1738505589391,-504.51,0.00013698,2]
[351286790,1738505589400,-1694.57,0.00013698,2]
[351286791,1738505589410,-809.09,0.00013698,2]
[351286792,1738505589420,-1463.68,0.00013698,2]
[351286793,1738505589430,-500.0,0.00013698,2]
[351286794,1738505589440,-957.1,0.00013698,2]
[351286795,1738505589450,-5901.35,0.00013698,2]
[351286796,1738505589460,-25450.62,0.00013698,2]
[351286797,1738505589470,-3194.77,0.00013698,2]
[351286798,1738505589480,-972.11,0.00013698,2]
[351286799,1738505589490,-978.28,0.00013698,2]
[351286800,1738505589500,-1927.34,0.00013698,2]
[351286801,1738505589511,-1313.38,0.00013698,2]
[351286802,1738505589520,-1822.98,0.00013698,2]
[351286803,1738505589531,-2811.74,0.00013698,2]
[351286804,1738505589541,-2290.65,0.00013698,2]
[351286805,1738505589551,-4241.49,0.00013698,2]
[351286806,1738505589562,-2753.15,0.00013698,2]
[351286807,1738505589572,-778.33,0.00013698,2]
[351286808,1738505589583,-11875.49,0.00013698,2]
[351286809,1738505589592,-3179.79,0.00013698,2]
[351286810,1738505589602,-590.79,0.00013698,2]
[351286811,1738505589613,-2422.99,0.00013698,2]
[351286812,1738505589623,-1805.01,0.00013698,2]
[351286813,1738505589634,-8941.69,0.00013698,2]
[351286814,1738505589645,-1720.61,0.00013698,2]
[351286815,1738505589656,-924.98,0.00013698,2]
[351286816,1738505589666,-753.96,0.00013698,2]
[351286817,1738505589676,-1515.55,0.00013698,2]
[351286818,1738505589686,-2796.09,0.00013698,2]
[351286819,1738505589696,-890.83,0.00013698,2]
[351286820,1738505589706,-1171.94,0.00013698,2]
[351286821,1738505589716,-8022.15,0.00013698,2]
[351286822,1738505589727,-741.26,0.00013698,2]
[351286823,1738505589737,-1314.16,0.00013698,2]
[351286824,1738505589746,-2827.17,0.00013698,2]
[351286825,1738505589757,-596.08,0.00013698,2]
[351286826,1738505589766,-2587.99,0.00013698,2]
[351286827,1738505589777,-155.292379,0.00013698,2]
[351286828,1738505589793,-770.44,0.00013698,2]
[351286829,1738505589803,-651.22,0.00013698,2]
[351286830,1738505589814,-500.0,0.00013699,2]
[351286831,1738505589824,-1654.16,0.00013699,2]
[351286832,1738505589834,-252.9,0.00013699,2]
[351286833,1738505589844,-200.0,0.00013699,2]
[351286834,1738505589854,-300.0,0.00013699,2]
[351286835,1738505589864,-500.0,0.00013699,13]
[351286836,1738505589873,-582.0,0.00013699,13]
[351286837,1738505589883,-22292.14,0.00013699,2]
[351286838,1738505589894,-500.0,0.00013699,2]
[351286839,1738505589903,-500.0,0.00013699,2]
[351286840,1738505589914,-500.0,0.00013699,2]
[351286841,1738505589923,-531.66626485,0.00013699,2]
[351286842,1738505589933,-500.0,0.00013699,2]
[351286843,1738505589943,-160.32717605,0.00013699,2]
[351286844,1738505589953,-500.0,0.00013699,2]
[351286845,1738505589963,-316.02225814,0.00013699,2]
[351286846,1738505589974,-500.0,0.00013699,2]
[351286847,1738505589984,-518.34804438,0.00013699,2]
[351286848,1738505589996,-207.04048661,0.00013699,2]
[351286849,1738505590005,-500.0,0.00013699,2]
[351286850,1738505590015,-357.89907218,0.00013699,2]
[351286851,1738505590026,-520.80085607,0.00013699,2]
[351286852,1738505590040,-301.94948668,0.00013699,2]
[351286853,1738505590050,-324.18503729,0.00013699,2]
[351286854,1738505590060,-501.3468199,0.00013699,2]
[351286855,1738505590070,-500.0,0.00013699,2]
[351286856,1738505590080,-600.06703194,0.00013699,2]
[351286857,1738505590091,-517.26553847,0.00013699,2]
[351286858,1738505590101,-1942.81,0.000137,2]
[351286859,1738505590112,-323.22780939,0.00013797,2]
[351286860,1738505590122,-413.27,0.00013828,2]
[351286861,1738505590132,-559.46,0.00013835,2]
[351286862,1738505590141,-803.7,0.00013835,2]
[351286863,1738505590150,-500.0,0.00013835,2]
[351286864,1738505590161,-500.0,0.00013835,2]
[351286865,1738505590170,-801.06,0.00013835,2]
[351286866,1738505590180,-773.23,0.00013835,2]
[351286867,1738505590190,-759.9,0.00013835,2]
[351286868,1738505590200,-1260.15,0.00013835,2]
[351286869,1738505590210,-589.03,0.00013835,2]
[351286870,1738505590219,-1063.41,0.00013835,2]
[351286871,1738505590229,-673.02,0.00013835,2]
[351286872,1738505590239,-821.68,0.00013835,2]
[351286873,1738505590249,-549.88,0.00013835,2]
[351286874,1738505590258,-703.15,0.00013835,2]
[351286875,1738505590268,-828.9,0.00013835,2]
[351286876,1738505590282,-627.47,0.00013835,2]
[351286877,1738505590292,-731.11,0.00013835,2]
[351286878,1738505590302,-500.0,0.00013835,2]
[351286879,1738505590312,-592.69,0.00013835,2]
[351286880,1738505590322,-625.97,0.00013835,2]
[351286881,1738505590333,-500.0,0.00013835,2]
[351286882,1738505590343,-661.86,0.00013835,2]
[351286883,1738505590353,-552.57,0.00013835,2]
[351286884,1738505590363,-3015.63,0.00013835,2]
[351286885,1738505590374,-635.12,0.00013835,2]
[351286886,1738505590383,-1112.86,0.00013835,2]
[351286887,1738505590394,-511.08,0.00013835,2]
[351286888,1738505590404,-910.85,0.00013835,2]
[351286889,1738505590415,-738.14,0.00013835,2]
[351286890,1738505590426,-1482.76,0.00013835,2]
[351286891,1738505590436,-500.0,0.00013835,2]
[351286892,1738505590447,-545.77,0.00013835,2]
[351286893,1738505590458,-735.2,0.00013835,2]
[351286894,1738505590469,-717.38,0.00013835,2]
[351286895,1738505590480,-2333.39,0.00013835,2]
[351286896,1738505590490,-618.28,0.00013835,2]
[351286897,1738505590501,-2305.89,0.00013835,2]
[351286898,1738505590512,-703.3,0.00013835,2]
[351286899,1738505590522,-2217.46,0.00013835,2]
[351286900,1738505590534,-573.42,0.00013835,2]
[351286901,1738505590544,-2053.36,0.00013835,2]
[351286902,1738505590556,-1106.04,0.00013835,2]
[351286903,1738505590571,-2139.13,0.00013835,2]
[351286904,1738505590581,-1316.15,0.00013835,2]
[351286905,1738505590591,-548.83,0.00013835,2]
[351286906,1738505590602,-553.21,0.00013835,2]
[351286907,1738505590612,-525.3,0.00013835,2]
[351286908,1738505590622,-2325.54,0.00013835,2]
[351286909,1738505590632,-1109.74,0.00013835,2]
[351286910,1738505590643,-500.44,0.00013835,2]
[351286911,1738505590653,-551.84,0.00013835,2]
[351286912,1738505590663,-681.73,0.00013835,2]
[351286913,1738505590673,-677.93,0.00013835,2]
[351286914,1738505590683,-513.34,0.00013835,2]
[351286915,1738505590692,-1154.2,0.00013835,2]
[351286916,1738505590702,-2022.69,0.00013835,2]
[351286917,1738505590713,-685.35,0.00013835,2]
[351286918,1738505590724,-500.0,0.00013835,2]
[351286919,1738505590735,-550.64,0.00013835,2]
[351286920,1738505590746,-1342.11,0.00013835,2]
[351286921,1738505590755,-2093.39,0.00013835,2]
[351286922,1738505590765,-880.18,0.00013835,2]
[351286923,1738505590775,-1643.92,0.00013835,2]
[351286924,1738505590786,-519.61634184,0.00013835,2]
[351286925,1738505590795,-793.33,0.00013835,2]
[351286926,1738505590805,-1232.16,0.00013835,2]
[351286927,1738505590815,-588.54,0.00013835,2]
[351286928,1738505590825,-538.87,0.00013835,2]
[351286929,1738505590835,-534.34,0.00013835,2]
[351286930,1738505590845,-793.28,0.00013835,2]
[351286931,1738505590855,-1592.88,0.00013835,2]
[351286932,1738505590866,-616.53,0.00013835,2]
[351286933,1738505590875,-393.63657452,0.00013835,2]
[351286934,1738505590885,-1854.87,0.00013835,2]
[351286935,1738505590895,-1690.33,0.00013835,2]
[351286936,1738505590905,-534.43,0.00013835,2]
[351286937,1738505590914,-556.37082064,0.00013835,2]
[351286938,1738505590924,-637.72,0.00013835,2]
[351286939,1738505590934,-1150.84,0.00013835,2]
[351286940,1738505590944,-508.66,0.00013835,2]
[351286941,1738505590955,-508.93,0.00013835,2]
[351286942,1738505590964,-500.0,0.00013835,2]
[351286943,1738505590974,-586.07,0.00013835,2]
[351286944,1738505590984,-800.25,0.00013835,2]
[351286945,1738505591307,-731.54,0.00013835,2]
[351286946,1738505591317,-1305.07,0.00013835,2]
[351286947,1738505591327,-1841.9,0.00013835,2]
[351286948,1738505591338,-734.22,0.00013835,2]
[351286949,1738505591347,-500.0,0.00013835,2]
[351286950,1738505591357,-1731.58,0.00013835,2]
[351286951,1738505591367,-573.1,0.00013835,2]
[351286952,1738505591377,-500.0,0.00013835,2]
[351286953,1738505591387,-1366.78,0.00013835,2]
[351286954,1738505591397,-1447.06,0.00013835,2]
[351286955,1738505591406,-955.56,0.00013835,2]
[351286956,1738505591417,-521.42,0.00013835,2]
[351286957,1738505591427,-904.27,0.00013835,2]
[351286958,1738505591436,-2762.56,0.00013835,2]
[351286959,1738505591446,-854.39,0.00013835,2]
[351286960,1738505591457,-666.98,0.00013835,2]
[351286961,1738505591467,-500.0,0.00013835,2]
[351286962,1738505591477,-783.0,0.00013835,2]
[351286963,1738505591487,-500.0,0.00013835,2]
[351286964,1738505591497,-2104.01,0.00013835,2]
[351286965,1738505591507,-2287.85,0.00013835,2]
[351286966,1738505591518,-738.27,0.00013835,2]
[351286967,1738505591528,-944.74,0.00013835,2]
[351286968,1738505591538,-505.82,0.00013835,2]
[351286969,1738505591548,-1297.85,0.00013835,2]
[351286970,1738505591561,-1519.92,0.00013835,2]
[351286971,1738505591572,-643.77,0.00013835,2]
[351286972,1738505591582,-784.02,0.00013835,2]